[Event "Dutch Open 2022"]
[Site "Dieren"]
[Date "2022.08.02"]
[Round "7.7"]
[White "Stillger, Bernhard"]
[Black "Mollema, Thomas"]
[Result "1-0"]
[ECO "D32"]
[WhiteElo "2245"]
[BlackElo "2235"]
[Annotator "TA"]
[PlyCount "107"]
[EventDate "2022.07.14"]
[EventType "swiss"]
[EventCountry "NED"]
[SourceTitle "playchess.com"]
[Source "ChessBase"]
[SourceQuality "1"]
[TimeControl "40/5400+30:1800+30"]

{[%evp 12,107,63,59,58,43,30,21,19,20,17,26,20,30,36,27,81,74,80,73,77,72,68,45,49,40,44,35,31,31,38,32,56,38,43,42,39,21,20,10,76,76,76,76,76,76,76,76,76,76,85,85,100,101,101,102,168,148,143,141,12821,5289,12833,12833,12833,12834,12835,12835,12836,12836,12837,12837,12837,12838,12838,12839,12843,12843,12844,12844,12845,12845,12845,12846,12848,12847,12847,12847,12850,27999,27997,27999,27999,27996,27997,27997,27998,27998]} 1. d4 {[%emt 0:00:02]} d5 {[%emt 0:00:07]} 2. c4 {[%emt 0:00:05]} e6 {[%emt 0:00:10][%cal Be7e6,Be6d5,Bd5d4][%mdl 32]} 3. Nf3 {[%emt 0:00:12]} c5 {[%emt 0:00:09]} 4. cxd5 {[%emt 0:00:09]} exd5 {[%emt 0:00:11]} 5. Nc3 {[%emt 0:00:14]} Nc6 {[%emt 0:01:41]} 6. dxc5 {[%emt 0:00:34]} d4 {[%emt 0:01:14]} 7. Na4 $1 {[%emt 0:00:44]} Bxc5 {[%emt 0:01:58][%mdl 64] [#] Decoy. D32: Tarrasch Defence: Sidelines and lines without g3.} 8. Nxc5 {[%emt 0:00:17] Strongly threatening Nb3.} Qa5+ {[%emt 0:00:03]} 9. Bd2 {[%emt 0:00:15]} Qxc5 {[%emt 0:00:03] The position is equal.} 10. Rc1 {[%emt 0:00:09][%cal Ba1c1,Bc1c2,Bc2d2][%mdl 32]} Qb6 {[%emt 0:02:23]} 11. e3 {[%emt 0:00:42]} Nf6 {[%emt 0:02:05]} 12. Bc4 {[%emt 0:01:24]} O-O {[%emt 0:01:50]} 13. O-O {[%emt 0:00:36]} Ne4 {[%emt 0:11:09] [#]} (13... Be6 $11 {keeps the balance.}) 14. Nxd4 $146 {[%emt 0:19:19]} ({Predecessor:} 14. exd4 Nxd2 15. Qxd2 Bg4 16. Ne5 Nxe5 17. dxe5 Rad8 18. Qc3 Rc8 19. Qb3 Qc7 20. h3 {1-0 (68) Thorsbro,P (2250)-Karlsson,U (2026) Ballerup 2016}) 14... Qxb2 {[%emt 0:14:59]} 15. Rc2 {[%emt 0:20:15]} Qb6 {[%emt 0:00:27]} 16. Nxc6 {[%emt 0:00:45]} bxc6 {[%emt 0:00:18]} 17. Qf3 {[%emt 0:09:32]} Nxd2 {[%emt 0:02:19]} 18. Rxd2 {[%emt 0:00:42]} Ba6 {[%emt 0:00:21]} 19. Bxa6 {[%emt 0:01:41]} Qxa6 {[%emt 0:58:33]} 20. Rc1 {[%emt 0:00:27]} Rac8 {[%emt 0:00:00]} 21. g3 {[%emt 0:02:09]} Qa5 {[%emt 0:00:00]} 22. Rdc2 {[%emt 0:09:26]} h6 {[%emt 0:00:00]} 23. Kg2 {[%emt 0:01:54]} Rfd8 {[%emt 0:00:00]} 24. Qf4 {[%emt 0:02:33]} Rd2 {[%emt 0:00:00]} 25. Qe4 {[%emt 0:08:11]} c5 {[%emt 0:00:00]} (25... Rxc2 $11 {remains equal.} 26. Rxc2 c5) 26. Qf5 $16 {[%emt 0:03:55][%csl LRc5,LRc8]} Rcd8 {[%emt 0:00:00]} 27. Rxd2 {[%emt 0:04:12]} ({Of course not} 27. Qxc5 Qxc5 28. Rxc5 Rxa2 $11) 27... Qxd2 {[%emt 0:00:00]} 28. Rxc5 {[%emt 0:03:23]} Qxa2 {[%emt 0:00:00][%mdl 4096] Endgame KQR-KQR} 29. Ra5 {[%emt 0:00:15]} Qc4 {[%emt 0:00:00]} 30. Rxa7 {[%emt 0:00:46]} Re8 {[%emt 0:00:00]} 31. Rd7 {[%emt 0:01:29]} Qc6+ {[%emt 0:00:00]} 32. Qd5 {[%emt 0:00:33]} Qf6 {[%emt 0:00:00]} 33. h4 {[%emt 0:01:32]} g6 {[%emt 0:00:00]} (33... Re5 $16 {was necessary.} 34. Qc4 g6 35. Qc8+ Kg7) 34. Rd6 $18 {[%emt 0:01:14]} Qg7 {[%emt 0:00:00]} 35. h5 $36 {[%emt 0:01:51][%mdl 2048] White is really pushing. White is more active.} gxh5 {[%emt 0:01:25][%mdl 8192] [#] Black cannot hold the game after this.} (35... Re5 $16 36. Qa8+ Kh7) 36. Qxh5 {[%emt 0:00:35]} Re5 {[%emt 0:03:29]} 37. Qxh6 {[%emt 0:00:49]} Qxh6 {[%emt 0:00:14]} 38. Rxh6 {[%emt 0:00:04] KR-KR} Kg7 {[%emt 0:00:04]} 39. Rd6 {[%emt 0:00:15]} Ra5 {[%emt 0:00:02]} 40. f4 {[%emt 0:01:27]} Ra2+ {[%emt 0:00:04]} 41. Kf3 {[%emt 0:30:07]} Ra4 {[%emt 0:30:07]} 42. g4 {[%emt 0:00:24][%cal Bg3g4,Bg4g5][%mdl 32]} Ra1 {[%emt 0:00:06]} 43. g5 {[%emt 0:00:12]} Ra5 {[%emt 0:00:11]} 44. e4 {[%emt 0:01:37][%cal Be3e4,Be4e5][%mdl 32]} Rb5 {[%emt 0:00:10]} 45. e5 {[%emt 0:00:29]} Rb4 {[%emt 0:00:25]} 46. Kg4 {[%emt 0:00:15]} Ra4 {[%emt 0:01:54]} 47. Kf5 {[%emt 0:00:27]} Kh7 {[%emt 0:00:26]} 48. Rd7 {[%emt 0:01:13]} Kg8 {[%emt 0:00:06]} 49. g6 {[%emt 0:03:03]} fxg6+ {[%emt 0:00:38]} 50. Kxg6 {[%emt 0:00:27]} Rxf4 {[%emt 0:00:31] White mates.} 51. Rd8+ {[%emt 0:00:10]} Rf8 {[%emt 0:00:02]} 52. Rxf8+ {[%emt 0:00:08]} Kxf8 {[%emt 0:00:02]} 53. Kf6 {[%emt 0:00:06]} Ke8 {[%emt 0:00:02]} 54. Ke6 {[%emt 0:00:05] Weighted Error Value: White=0.04 (flawless) /Black=0.14 (very precise)} 1-0

[Event "Dutch Open 2022"]
[Site "Dieren"]
[Date "2022.08.02"]
[Round "7.8"]
[White "Achuthan, Dylan"]
[Black "Burdalev, Kirill"]
[Result "0-1"]
[ECO "A07"]
[WhiteElo "1989"]
[BlackElo "2381"]
[Annotator "RC"]
[PlyCount "116"]
[EventDate "2022.07.14"]
[EventType "swiss"]
[EventCountry "NED"]
[SourceTitle "playchess.com"]
[Source "ChessBase"]
[SourceQuality "1"]
[TimeControl "40/5400+30:1800+30"]

1. Nf3 {[%emt 0:00:04]} d5 {[%emt 0:02:20]} 2. g3 {[%emt 0:00:15]} c6 {[%emt 0:00:02]} 3. Bg2 {[%emt 0:00:14]} Bg4 {[%emt 0:00:05]} 4. d4 {[%emt 0:01:23]} Nd7 {[%emt 0:00:44]} 5. O-O {[%emt 0:02:38]} e6 {[%emt 0:01:11]} 6. Nbd2 {[%emt 0:01:39]} Bd6 {[%emt 0:03:29]} 7. e4 {[%emt 0:03:29]} Ne7 {[%emt 0:00:03]} 8. e5 {[%emt 0:02:36]} Bc7 {[%emt 0:00:08]} 9. h3 {[%emt 0:02:08]} Bh5 {[%emt 0:00:03]} 10. g4 {[%emt 0:02:52]} Bg6 {[%emt 0:00:04]} 11. Nh4 {[%emt 0:01:05]} c5 {[%emt 0:25:09]} 12. Nxg6 {[%emt 0:08:53]} Nxg6 {[%emt 0:03:29]} 13. f4 {[%emt 0:07:04]} cxd4 {[%emt 0:00:39]} 14. Nf3 {[%emt 0:00:48]} h5 {[%emt 0:03:48]} 15. gxh5 {[%emt 0:12:26]} Nh4 {[%emt 0:00:45]} 16. Nxd4 {[%emt 0:03:18]} Bb6 {[%emt 0:02:46]} 17. Be3 {[%emt 0:01:12]} Nxg2 {[%emt 0:09:16]} 18. Kxg2 {[%emt 0:00:03]} Qh4 {[%emt 0:00:42]} 19. Qg4 {[%emt 0:03:02]} Qxh5 {[%emt 0:00:07]} 20. Rae1 {[%emt 0:02:49]} Bxd4 {[%emt 0:03:54]} 21. Bxd4 {[%emt 0:00:39]} g6 {[%emt 0:01:01]} 22. Re3 {[%emt 0:02:10]} Nb8 {[%emt 0:09:51]} 23. Ra3 {[%emt 0:07:16]} Nc6 {[%emt 0:00:25]} 24. c3 {[%emt 0:34:27]} Kd7 {[%emt 0:04:54]} 25. Rf3 {[%emt 0:00:00]} a6 {[%emt 0:08:16]} 26. Bc5 {[%emt 0:00:00]} Qxg4+ {[%emt 0:03:38]} 27. hxg4 {[%emt 0:00:00]} Rh4 {[%emt 0:00:05]} 28. Bf2 {[%emt 0:00:00]} Rh7 {[%emt 0:01:08]} 29. Rb3 {[%emt 0:00:00]} b5 {[%emt 0:00:19]} 30. a4 {[%emt 0:00:00]} Na5 {[%emt 0:00:51]} 31. Rb4 {[%emt 0:00:00]} Kc6 {[%emt 0:00:20]} 32. b3 {[%emt 0:00:00]} Rah8 {[%emt 0:01:05]} 33. Bg1 {[%emt 0:00:00]} Rh4 {[%emt 0:00:59]} 34. f5 {[%emt 0:00:00]} gxf5 {[%emt 0:02:08]} 35. gxf5 {[%emt 0:00:00]} Rg8+ {[%emt 0:00:04]} 36. Kf2 {[%emt 0:00:18]} Rh5 {[%emt 0:06:02]} 37. axb5+ {[%emt 0:02:47]} axb5 {[%emt 0:00:04]} 38. fxe6 {[%emt 0:02:10]} fxe6 {[%emt 0:00:05]} 39. Rf6 {[%emt 0:00:16]} Rxe5 {[%emt 0:00:21]} 40. Bh2 {[%emt 0:00:28]} Rf5+ {[%emt 0:00:54]} 41. Rxf5 {[%emt 0:30:46]} exf5 {[%emt 0:30:28]} 42. Be5 {[%emt 0:00:00]} Re8 {[%emt 0:00:00]} 43. Bf6 {[%emt 0:00:00]} Re4 {[%emt 0:00:00]} 44. Rxe4 {[%emt 0:00:00]} dxe4 {[%emt 0:00:00]} 45. b4 {[%emt 0:00:00]} Nc4 {[%emt 0:00:00]} 46. Kg3 {[%emt 0:00:00]} Kd5 {[%emt 0:00:00]} 47. Kf4 {[%emt 0:00:00]} Ke6 {[%emt 0:00:00]} 48. Bd4 {[%emt 0:00:00]} Nb2 {[%emt 0:00:00]} 49. Ke3 {[%emt 0:00:00]} Nd3 {[%emt 0:00:00]} 50. Bg7 {[%emt 0:00:00]} Kd5 {[%emt 0:00:00]} 51. Bh6 {[%emt 0:00:00]} f4+ {[%emt 0:00:00]} 52. Ke2 {[%emt 0:00:00]} f3+ {[%emt 0:00:00]} 53. Ke3 {[%emt 0:00:00]} Ne5 {[%emt 0:00:00]} 54. Bg7 {[%emt 0:00:00]} Ng4+ {[%emt 0:00:00]} 55. Kd2 {[%emt 0:00:00]} Kc4 {[%emt 0:00:00]} 56. Bd4 {[%emt 0:00:00]} f2 {[%emt 0:00:00]} 57. Ke2 {[%emt 0:00:00]} e3 {[%emt 0:00:00]} 58. Bg7 {[%emt 0:00:00]} Nh2 {[%emt 0:00:00]} 0-1

[Event "Dutch Open 2022"]
[Site "Dieren"]
[Date "2022.08.02"]
[Round "7.9"]
[White "Zwirs, Jasper"]
[Black "Van Baar, Esper"]
[Result "0-1"]
[ECO "B94"]
[WhiteElo "2105"]
[BlackElo "2281"]
[Annotator "RC"]
[PlyCount "76"]
[EventDate "2022.07.14"]
[EventType "swiss"]
[EventCountry "NED"]
[SourceTitle "playchess.com"]
[Source "ChessBase"]
[SourceQuality "1"]
[TimeControl "40/5400+30:1800+30"]

1. e4 {[%emt 0:00:32]} c5 {[%emt 0:03:17]} 2. Nf3 {[%emt 0:00:07]} d6 {[%emt 0:00:04]} 3. d4 {[%emt 0:00:04]} cxd4 {[%emt 0:00:02]} 4. Nxd4 {[%emt 0:00:06]} Nf6 {[%emt 0:00:05]} 5. Nc3 {[%emt 0:00:05]} a6 {[%emt 0:00:03]} 6. Bg5 {[%emt 0:00:25]} Nbd7 {[%emt 0:00:02]} 7. Bc4 {[%emt 0:00:43]} Qb6 {[%emt 0:00:06]} 8. Bb3 {[%emt 0:01:15]} e6 {[%emt 0:01:16]} 9. a4 {[%emt 0:00:39]} Nc5 {[%emt 0:03:27]} 10. Bxf6 {[%emt 0:02:50]} gxf6 {[%emt 0:04:48]} 11. O-O {[%emt 0:00:21]} Nxb3 {[%emt 0:00:18]} 12. Nxb3 {[%emt 0:04:17]} Bd7 {[%emt 0:06:00]} 13. Qh5 {[%emt 0:04:51]} Rc8 {[%emt 0:16:51]} 14. Kh1 {[%emt 0:10:33]} Qb4 {[%emt 0:01:37]} 15. f4 {[%emt 0:27:49]} Rxc3 {[%emt 0:00:44]} 16. bxc3 {[%emt 0:00:11]} Qxe4 {[%emt 0:00:40]} 17. Nd4 {[%emt 0:01:26]} Rg8 {[%emt 0:04:44]} 18. Rf2 {[%emt 0:01:27]} e5 {[%emt 0:21:10]} 19. h3 {[%emt 0:18:03]} Be7 {[%emt 0:11:21]} 20. fxe5 {[%emt 0:08:45]} dxe5 {[%emt 0:01:57]} 21. Qf3 {[%emt 0:07:20]} Qxf3 {[%emt 0:01:45]} 22. Nxf3 {[%emt 0:00:02]} Bc5 {[%emt 0:01:16]} 23. Rff1 {[%emt 0:00:24]} Bc6 {[%emt 0:03:52]} 24. Kh2 {[%emt 0:00:49]} Be3 {[%emt 0:03:15]} 25. g3 {[%emt 0:03:12]} Bb6 {[%emt 0:03:09]} 26. Nh4 {[%emt 0:02:10]} Ke7 {[%emt 0:00:08]} 27. Nf5+ {[%emt 0:00:46]} Ke6 {[%emt 0:12:03]} 28. Rad1 {[%emt 0:03:54]} Bc5 {[%emt 0:00:00]} 29. a5 {[%emt 0:00:33]} Bb5 {[%emt 0:00:00]} 30. Nd4+ {[%emt 0:01:20]} exd4 {[%emt 0:00:00]} 31. Rde1+ {[%emt 0:00:09]} Kd5 {[%emt 0:00:00]} 32. Rxf6 {[%emt 0:00:33]} dxc3 {[%emt 0:00:00]} 33. Rf5+ {[%emt 0:00:47]} Kc4 {[%emt 0:00:23]} 34. Rxf7 {[%emt 0:00:24]} Rd8 {[%emt 0:01:21]} 35. Re4+ {[%emt 0:00:36]} Rd4 {[%emt 0:00:21]} 36. Rxd4+ {[%emt 0:00:20]} Bxd4 {[%emt 0:00:28]} 37. Rxh7 {[%emt 0:00:37]} Ba4 {[%emt 0:00:43]} 38. Rc7+ {[%emt 0:00:21]} Bc5 {[%emt 0:00:12]} 0-1

[Event "Dutch Open 2022"]
[Site "Dieren"]
[Date "2022.08.02"]
[Round "7.10"]
[White "Op den Dries, Johan"]
[Black "Manukonda Arun"]
[Result "0-1"]
[ECO "D01"]
[WhiteElo "2104"]
[BlackElo "2021"]
[Annotator "RC"]
[PlyCount "126"]
[EventDate "2022.07.14"]
[EventType "swiss"]
[EventCountry "NED"]
[SourceTitle "playchess.com"]
[Source "ChessBase"]
[SourceQuality "1"]
[TimeControl "40/5400+30:1800+30"]

1. d4 {[%emt 0:00:02]} Nf6 {[%emt 0:05:24]} 2. Nc3 {[%emt 0:00:08]} d5 {[%emt 0:00:06]} 3. Bg5 {[%emt 0:00:05]} Nbd7 {[%emt 0:00:37]} 4. Qd2 {[%emt 0:00:34]} h6 {[%emt 0:00:16]} 5. Bf4 {[%emt 0:01:19]} c6 {[%emt 0:02:42]} 6. e3 {[%emt 0:01:40]} e6 {[%emt 0:00:31]} 7. Bd3 {[%emt 0:00:29]} Bb4 {[%emt 0:02:06]} 8. Nge2 {[%emt 0:00:09]} O-O {[%emt 0:00:22]} 9. a3 {[%emt 0:00:30]} Ba5 {[%emt 0:00:38]} 10. O-O {[%emt 0:08:29]} Re8 {[%emt 0:03:20]} 11. b4 {[%emt 0:00:35]} Bb6 {[%emt 0:01:12]} 12. e4 {[%emt 0:01:52]} e5 {[%emt 0:01:15]} 13. dxe5 {[%emt 0:01:25]} Nxe5 {[%emt 0:00:29]} 14. Ng3 {[%emt 0:06:13]} Nxd3 {[%emt 0:05:31]} 15. Qxd3 {[%emt 0:00:12]} dxe4 {[%emt 0:00:34]} 16. Qxd8 {[%emt 0:03:41]} Rxd8 {[%emt 0:02:52]} 17. Rad1 {[%emt 0:01:51]} Bg4 {[%emt 0:00:30]} 18. Rde1 {[%emt 0:01:33]} Nd5 {[%emt 0:01:12]} 19. Nxd5 {[%emt 0:00:22]} cxd5 {[%emt 0:00:03]} 20. c4 {[%emt 0:00:15]} dxc4 {[%emt 0:02:08]} 21. Nxe4 {[%emt 0:00:31]} Bd4 {[%emt 0:05:22]} 22. Nd6 {[%emt 0:03:50]} g5 {[%emt 0:03:27]} 23. Bg3 {[%emt 0:01:03]} f5 {[%emt 0:03:34]} 24. Nb5 {[%emt 0:08:42]} f4 {[%emt 0:17:34]} 25. Nxd4 {[%emt 0:00:05]} fxg3 {[%emt 0:00:07]} 26. Re4 {[%emt 0:01:18]} gxh2+ {[%emt 0:02:46]} 27. Kxh2 {[%emt 0:00:06]} Bd7 {[%emt 0:03:09]} 28. f4 {[%emt 0:09:56]} Re8 {[%emt 0:04:29]} 29. Rxe8+ {[%emt 0:00:06]} Rxe8 {[%emt 0:00:09]} 30. fxg5 {[%emt 0:00:19]} hxg5 {[%emt 0:00:52]} 31. Rc1 {[%emt 0:04:45]} b5 {[%emt 0:01:39]} 32. Rc3 {[%emt 0:00:05]} Kg7 {[%emt 0:02:24]} 33. Kg3 {[%emt 0:04:21]} Re4 {[%emt 0:01:26]} 34. Nf3 {[%emt 0:02:08]} Kf6 {[%emt 0:03:34]} 35. Kf2 {[%emt 0:00:27]} Bg4 {[%emt 0:04:47]} 36. Nh2 {[%emt 0:04:33]} Bh5 {[%emt 0:03:42]} 37. Rh3 {[%emt 0:01:12]} Bd1 {[%emt 0:04:56]} 38. Nf1 {[%emt 0:02:13]} Re2+ {[%emt 0:00:53]} 39. Kg1 {[%emt 0:00:05]} Re1 {[%emt 0:00:43]} 40. Kf2 {[%emt 0:00:39]} Re2+ {[%emt 0:00:12]} 41. Kg1 {[%emt 0:30:04]} Ke5 {[%emt 0:31:55]} 42. Rg3 {[%emt 0:03:23]} Kf6 {[%emt 0:00:00]} 43. Ne3 {[%emt 0:00:00]} Rd2 {[%emt 0:00:00]} 44. Kf1 {[%emt 0:00:00]} Rd3 {[%emt 0:00:00]} 45. Ke1 {[%emt 0:00:00]} Bh5 {[%emt 0:00:00]} 46. Rh3 {[%emt 0:00:00]} Kg6 {[%emt 0:00:00]} 47. Nf1 {[%emt 0:00:00]} Rd1+ {[%emt 0:00:00]} 48. Kf2 {[%emt 0:00:00]} Ra1 {[%emt 0:00:00]} 49. Re3 {[%emt 0:00:00]} Bg4 {[%emt 0:00:00]} 50. Rc3 {[%emt 0:00:00]} Ra2+ {[%emt 0:00:00]} 51. Ke3 {[%emt 0:01:03]} Rxg2 {[%emt 0:00:00]} 52. Kd4 {[%emt 0:00:03]} Bd1 {[%emt 0:00:13]} 53. Ne3 {[%emt 0:01:17]} Rd2+ {[%emt 0:00:01]} 54. Kc5 {[%emt 0:00:12]} Ba4 {[%emt 0:00:20]} 55. Nd5 {[%emt 0:00:32]} Rd3 {[%emt 0:00:34]} 56. Rc1 {[%emt 0:01:47]} Rxa3 {[%emt 0:00:26]} 57. Nc7 {[%emt 0:00:02]} Rf3 {[%emt 0:00:56]} 58. Kd4 {[%emt 0:02:10]} g4 {[%emt 0:01:20]} 59. Ne6 {[%emt 0:00:25]} Rd3+ {[%emt 0:01:41]} 60. Kc5 {[%emt 0:00:21]} Kf5 {[%emt 0:00:33]} 61. Nd4+ {[%emt 0:00:27]} Ke4 {[%emt 0:00:20]} 62. Re1+ {[%emt 0:00:12]} Re3 {[%emt 0:00:14]} 63. Rh1 {[%emt 0:01:24]} Kd3 {[%emt 0:00:46]} 0-1

[Event "Dutch Open 2022"]
[Site "Dieren"]
[Date "2022.08.02"]
[Round "7.11"]
[White "Albers, Sasa"]
[Black "Grutter, Tim"]
[Result "0-1"]
[ECO "B44"]
[WhiteElo "2203"]
[BlackElo "2246"]
[Annotator "NA RC"]
[PlyCount "46"]
[EventDate "2022.07.14"]
[EventType "swiss"]
[EventCountry "NED"]
[SourceTitle "playchess.com"]
[Source "ChessBase"]
[SourceQuality "1"]
[TimeControl "40/5400+30:1800+30"]

1. e4 {[%emt 0:07:55]} c5 {[%emt 0:00:02]} 2. Nf3 {[%emt 0:00:05]} e6 {[%emt 0:00:02]} 3. d4 {[%emt 0:00:23]} cxd4 {[%emt 0:00:03]} 4. Nxd4 {[%emt 0:00:05]} Nc6 {[%emt 0:00:02]} 5. Bf4 {[%emt 0:00:35]} d6 {[%emt 0:00:24]} 6. Nxc6 {[%emt 0:00:12]} bxc6 {[%emt 0:00:03]} 7. c4 {[%emt 0:00:52]} Rb8 {[%emt 0:00:16]} 8. Qc2 {[%emt 0:00:09]} Ne7 {[%emt 0:00:07]} 9. Nc3 {[%emt 0:01:08]} c5 {[%emt 0:00:36]} 10. Be3 {[%emt 0:01:57]} Nc6 {[%emt 0:04:14]} 11. Rd1 {[%emt 0:07:53]} Qa5 {[%emt 0:07:42]} 12. Be2 {[%emt 0:01:24]} Be7 {[%emt 0:01:46]} 13. O-O {[%emt 0:00:11]} O-O {[%emt 0:00:37]} 14. Rd2 {[%emt 0:10:35]} Bf6 {[%emt 0:10:27]} 15. a3 {[%emt 0:15:46]} Rxb2 {[%emt 0:09:36]} 16. Qxb2 {[%emt 0:00:06]} Bxc3 {[%emt 0:00:03]} 17. Qb5 {[%emt 0:00:21]} Bxd2 {[%emt 0:01:06]} 18. Qxc6 {[%emt 0:00:15]} Bxe3 {[%emt 0:00:20]} 19. fxe3 {[%emt 0:00:02]} Qxa3 {[%emt 0:09:58]} 20. Qxd6 {[%emt 0:03:57]} Qxe3+ {[%emt 0:00:34]} 21. Rf2 {[%emt 0:00:02]} Bb7 {[%emt 0:03:49]} 22. e5 {[%emt 0:04:07]} Be4 {[%emt 0:01:40]} 23. Bh5 {[%emt 0:06:34]} g6 {[%emt 0:01:45]} 0-1

[Event "Dutch Open 2022"]
[Site "Dieren"]
[Date "2022.08.02"]
[Round "7.12"]
[White "Shakhverdian, William"]
[Black "Baselmans, Luuk"]
[Result "0-1"]
[ECO "E20"]
[WhiteElo "2040"]
[BlackElo "2256"]
[Annotator "RC"]
[PlyCount "44"]
[EventDate "2022.07.14"]
[EventType "swiss"]
[EventCountry "NED"]
[SourceTitle "playchess.com"]
[Source "ChessBase"]
[SourceQuality "1"]
[TimeControl "40/5400+30:1800+30"]

1. d4 {[%emt 0:00:02]} Nf6 {[%emt 0:00:09]} 2. c4 {[%emt 0:00:13]} e6 {[%emt 0:00:08]} 3. Nc3 {[%emt 0:00:42]} Bb4 {[%emt 0:00:14]} 4. f3 {[%emt 0:02:03]} c5 {[%emt 0:00:30]} 5. d5 {[%emt 0:01:37]} O-O {[%emt 0:00:40]} 6. e4 {[%emt 0:00:45]} b5 {[%emt 0:00:19]} 7. a4 {[%emt 0:04:19]} bxc4 {[%emt 0:02:52]} 8. Bxc4 {[%emt 0:00:25]} exd5 {[%emt 0:03:37]} 9. Bxd5 {[%emt 0:00:43]} Nxd5 {[%emt 0:00:13]} 10. Qxd5 {[%emt 0:00:08]} Ba6 {[%emt 0:03:51]} 11. Nge2 {[%emt 0:08:59]} Nc6 {[%emt 0:04:43]} 12. Be3 {[%emt 0:01:10]} Bxc3+ {[%emt 0:08:31]} 13. bxc3 {[%emt 0:01:40]} Rb8 {[%emt 0:01:07]} 14. Rd1 {[%emt 0:04:52]} Qh4+ {[%emt 0:03:38]} 15. Ng3 {[%emt 0:15:53]} Qf6 {[%emt 0:07:01]} 16. Qxc5 {[%emt 0:02:33]} Rb2 {[%emt 0:06:59]} 17. Rd6 {[%emt 0:24:24]} Qd8 {[%emt 0:10:21]} 18. Rd2 {[%emt 0:13:17]} Qb8 {[%emt 0:01:10]} 19. Nh5 {[%emt 0:04:01]} Rxd2 {[%emt 0:02:50]} 20. Bxd2 {[%emt 0:01:08]} Ne5 {[%emt 0:00:09]} 21. Qd4 {[%emt 0:02:24]} Nd3+ {[%emt 0:01:22]} 22. Kd1 {[%emt 0:00:11]} Qb3+ {[%emt 0:00:28]} 0-1

[Event "Dutch Open 2022"]
[Site "Dieren"]
[Date "2022.08.02"]
[Round "7.13"]
[White "Pijkeren, Jan"]
[Black "Binnendijk, Ferdinand"]
[Result "1-0"]
[ECO "A29"]
[WhiteElo "2196"]
[BlackElo "2147"]
[Annotator "RC"]
[PlyCount "43"]
[EventDate "2022.07.14"]
[EventType "swiss"]
[EventCountry "NED"]
[SourceTitle "playchess.com"]
[Source "ChessBase"]
[SourceQuality "1"]
[TimeControl "40/5400+30:1800+30"]

1. c4 {[%emt 0:00:05]} e5 {[%emt 0:00:03]} 2. Nc3 {[%emt 0:00:04]} Nf6 {[%emt 0:00:05]} 3. g3 {[%emt 0:00:04]} Bc5 {[%emt 0:00:05]} 4. Bg2 {[%emt 0:00:04]} O-O {[%emt 0:00:08]} 5. Nf3 {[%emt 0:00:27]} Nc6 {[%emt 0:00:50]} 6. O-O {[%emt 0:00:19]} a5 {[%emt 0:01:09]} 7. Nxe5 {[%emt 0:08:23]} Nxe5 {[%emt 0:00:04]} 8. d4 {[%emt 0:00:06]} Nxc4 {[%emt 0:01:46]} 9. dxc5 {[%emt 0:00:07]} Qe7 {[%emt 0:03:03]} 10. Qd4 {[%emt 0:14:55]} d5 {[%emt 0:09:41]} 11. Bg5 {[%emt 0:15:25]} c6 {[%emt 0:08:41]} 12. e4 {[%emt 0:06:48]} Qe5 {[%emt 0:06:38]} 13. Qxe5 {[%emt 0:04:00]} Nxe5 {[%emt 0:00:08]} 14. Bxf6 {[%emt 0:00:13]} gxf6 {[%emt 0:00:04]} 15. exd5 {[%emt 0:00:10]} Ra6 {[%emt 0:06:06]} 16. dxc6 {[%emt 0:14:36]} bxc6 {[%emt 0:00:23]} 17. Rad1 {[%emt 0:00:40]} Kg7 {[%emt 0:09:21]} 18. b3 {[%emt 0:04:10]} Bg4 {[%emt 0:05:22]} 19. Rd6 {[%emt 0:05:45]} Bf3 {[%emt 0:00:26]} 20. Ne4 {[%emt 0:06:47]} Rb8 {[%emt 0:07:30]} 21. Nxf6 {[%emt 0:09:07]} Rb5 {[%emt 0:05:30]} 22. Ne8+ {[%emt 0:00:38]} 1-0